bitfinex/quotes_SOLUSD_20250721
["timestamp","ask_amount","ask_price","bid_price","bid_amount"]
[1753136230641,35.66,196.73,196.71,0.67]
[1753136231354,35.7,196.72,196.69,6.25188841]
[1753136231729,36.39,196.72,196.68,5.08440105]
[1753136231929,36.39,196.72,196.68,5.75440105]
[1753136232130,35.7,196.72,196.68,5.75440105]
[1753136232353,35.7,196.72,196.69,0.67]
[1753136233053,6.27188841,196.71,196.65,0.67]
[1753136233260,41.26188841,196.7,196.65,0.67]
[1753136233638,41.95188841,196.7,196.65,0.67]
[1753136234161,36.37,196.7,196.65,11.33691954]
[1753136235644,6.27188841,196.69,196.63,31.0854716]
[1753136235941,5.58188841,196.67,196.62,5.78587806]
[1753136236165,36.35,196.66,196.62,5.11587806]
[1753136236658,41.24188841,196.66,196.62,0.03]
[1753136236861,0.69,196.65,196.62,0.03]
[1753136237056,5.58188841,196.63,196.62,0.03]
[1753136237251,41.26188841,196.63,196.62,0.03]
[1753136237461,41.95188841,196.63,196.62,0.03]
[1753136241465,47.03758235,196.63,196.62,0.03]
[1753136242468,41.95188841,196.63,196.62,0.03]
[1753136244474,41.26188841,196.63,196.62,0.03]
[1753136244947,5.58188841,196.67,196.62,6.28188841]
[1753136245153,35.66,196.66,196.63,0.67]
[1753136245340,35.66,196.66,196.64,0.67]
[1753136245556,35.66,196.66,196.62,0.03]
[1753136245846,35.66,196.66,196.65,0.67]
[1753136249385,5.58188841,196.68,196.65,0.67]
[1753136249590,35.64,196.67,196.65,0.67]
[1753136249773,35.64,196.67,196.65,5.75517145]
[1753136250094,35.64,196.67,196.65,0.67]
[1753136251364,35.64,196.67,196.63,5.75567375]
[1753136251564,35.64,196.67,196.64,0.67]
[1753136258973,36.34,196.67,196.62,11.3577643]
[1753136259302,36.34,196.67,196.63,0.66]
[1753136260385,36.34,196.67,196.62,10.6977643]
[1753136260386,0.7,196.66,196.62,0.03]
[1753136260701,35.6,196.65,196.62,5.11595248]
[1753136261073,0.7,196.64,196.62,0.03]
[1753136261382,35.6,196.63,196.62,0.03]
[1753136262003,41.88188841,196.63,196.62,0.03]
[1753136263377,46.96758235,196.63,196.62,0.03]
[1753136263606,63.75226632,196.63,196.62,0.03]
[1753136265982,22.57037791,196.63,196.62,0.03]
[1753136266313,63.75226632,196.63,196.62,0.03]
[1753136268910,89.75226632,196.63,196.62,0.03]
[1753136270826,92.40148179,196.63,196.62,0.03]
[1753136272612,56.80148179,196.63,196.62,0.03]
[1753136272912,92.40148179,196.63,196.62,0.03]
[1753136273115,92.38148179,196.63,196.62,0.03]
[1753136273692,56.80148179,196.63,196.62,0.03]
[1753136273922,92.38148179,196.63,196.62,0.03]
[1753136274214,56.80148179,196.63,196.62,0.03]
[1753136274422,92.38148179,196.63,196.62,0.03]
[1753136277920,16.78468397,196.62,196.58,0.03]
[1753136278095,22.36657238,196.59,196.58,0.03]
[1753136278302,146.42657238,196.59,196.58,0.03]
[1753136278515,147.12657238,196.59,196.58,0.03]
[1753136278814,5.58188841,196.61,196.58,0.69]
[1753136278993,35.58,196.6,196.58,0.69]
[1753136279397,2.64921547,196.63,196.59,0.66]
[1753136279601,35.64,196.62,196.59,5.74667792]
[1753136279805,35.64,196.62,196.6,0.66]
[1753136280223,35.64,196.62,196.61,0.66]
[1753136281220,35.64,196.62,196.59,0.66]
[1753136281425,35.64,196.62,196.58,5.61188841]
[1753136281731,5.58188841,196.61,196.58,0.69]
[1753136282024,35.62,196.6,196.59,0.66]
[1753136282843,35.62,196.6,196.58,0.03]
[1753136283017,41.20188841,196.6,196.58,0.03]
[1753136283918,35.62,196.6,196.58,0.03]
[1753136284301,41.20188841,196.6,196.58,0.03]
[1753136285630,35.62,196.6,196.59,0.66]
[1753136285819,88.56,196.67,196.59,6.24188841]
[1753136286127,52.42468397,196.65,196.6,6.24188841]
[1753136286424,52.42468397,196.65,196.61,0.66]
[1753136286600,52.42468397,196.65,196.62,0.66]
[1753136287004,35.64,196.65,196.63,0.66]
[1753136287408,35.64,196.65,196.64,0.66]
[1753136292233,0.06,196.67,196.64,0.66]
[1753136292422,35.6,196.65,196.62,10.66773896]
[1753136292928,35.6,196.65,196.63,0.65]
[1753136293546,35.6,196.65,196.63,11.31750695]
[1753136293837,35.6,196.65,196.64,0.65]
[1753136294421,35.66,196.65,196.64,0.65]
[1753136296638,35.66,196.65,196.64,5.73543531]
[1753136296819,35.66,196.65,196.64,11.31732372]
[1753136299626,35.66,196.65,196.64,5.73543531]
[1753136302412,35.66,196.65,196.64,0.65]
[1753136302613,35.66,196.65,196.64,31.73543531]
[1753136303139,35.66,196.65,196.64,37.31732372]
[1753136304432,35.66,196.65,196.64,31.73543531]
[1753136306016,35.66,196.65,196.64,26.0]
[1753136306626,35.66,196.65,196.64,26.65]
[1753136309435,35.66,196.65,196.64,26.0]
[1753136310947,35.66,196.65,196.64,26.65]
[1753136311253,35.66,196.65,196.64,26.0]
[1753136312933,41.94188841,196.65,196.59,11.31861713]
[1753136313247,41.94188841,196.65,196.6,0.65]
[1753136313455,41.94188841,196.65,196.61,5.08621128]
[1753136314137,0.7,196.64,196.6,5.73643547]
[1753136314641,6.28188841,196.64,196.6,5.73643547]
[1753136314840,6.28188841,196.63,196.58,0.68]
[1753136315151,36.22,196.62,196.58,0.68]
[1753136316149,36.22,196.62,196.58,5.76690645]
[1753136317142,35.52,196.62,196.59,0.65]
[1753136318255,35.52,196.62,196.59,5.7365214]
[1753136319362,35.52,196.62,196.6,0.66]
[1753136320963,35.52,196.62,196.59,5.0865214]
[1753136321264,35.52,196.62,196.59,5.7465214]
[1753136322668,36.2,196.62,196.58,5.11691428]
[1753136322970,5.58188841,196.6,196.58,0.03]
[1753136323268,35.48,196.59,196.58,0.03]
[1753136323761,36.16,196.59,196.58,0.03]
[1753136324343,41.74188841,196.59,196.58,0.03]
[1753136326267,36.16,196.59,196.58,0.03]
[1753136326643,35.48,196.59,196.58,0.03]
[1753136329269,35.48,196.59,196.58,0.69]
[1753136329677,35.48,196.59,196.58,5.77698748]
[1753136330563,5.58188841,196.62,196.58,5.77698748]
[1753136330767,5.58188841,196.62,196.59,0.66]
[1753136330958,0.06,196.65,196.6,5.58188841]
[1753136331153,35.48,196.64,196.61,0.66]
[1753136331471,35.48,196.64,196.6,5.58188841]
[1753136331472,35.48,196.64,196.62,0.66]
[1753136331684,35.48,196.64,196.61,5.74601912]
[1753136332174,35.48,196.64,196.61,5.08601912]
[1753136332577,36.16,196.64,196.61,5.08601912]
[1753136332777,35.5,196.63,196.61,5.08601912]
[1753136333156,35.5,196.63,196.61,5.74601912]
[1753136334265,0.68,196.62,196.58,0.03]
[1753136334472,0.68,196.62,196.58,5.77695922]
[1753136335075,6.26188841,196.62,196.58,5.77695922]
[1753136335268,0.68,196.62,196.58,5.11695922]
[1753136335575,41.08188841,196.63,196.59,0.66]
[1753136336049,41.76188841,196.63,196.59,0.66]
[1753136336666,41.76188841,196.63,196.59,5.74671255]
[1753136337269,22.36657238,196.62,196.58,0.03]
[1753136337455,5.58188841,196.59,196.58,0.03]
[1753136337655,41.06188841,196.59,196.58,0.03]
[1753136337956,35.48,196.59,196.58,0.03]
[1753136340183,36.16,196.59,196.58,0.03]
[1753136341879,41.74188841,196.59,196.58,0.03]
[1753136342077,58.52657238,196.59,196.58,0.03]
[1753136342657,63.6133011,196.59,196.58,0.03]
[1753136342857,65.2726011,196.59,196.58,0.03]
[1753136343077,16.78468397,196.58,196.54,0.03]
[1753136343377,22.36657238,196.55,196.54,0.03]
[1753136343573,57.86657238,196.55,196.54,0.03]
[1753136343776,58.54657238,196.55,196.54,0.03]
[1753136343958,61.03807244,196.55,196.54,0.03]
[1753136344267,16.78468397,196.51,196.46,0.03]
[1753136344475,5.58188841,196.47,196.46,0.03]
[1753136344686,41.08188841,196.47,196.46,0.03]
[1753136345063,35.5,196.47,196.46,0.03]
[1753136346782,5.58188841,196.48,196.46,0.03]
[1753136347168,35.5,196.47,196.46,0.03]
[1753136350282,35.5,196.47,196.46,0.69]
[1753136350977,35.5,196.47,196.46,0.03]
[1753136351180,36.18,196.47,196.46,0.03]
[1753136351391,41.76188841,196.47,196.46,0.03]
[1753136352783,41.08188841,196.47,196.46,0.03]
[1753136353767,41.76188841,196.47,196.46,0.03]
[1753136356672,46.851724,196.47,196.46,0.03]
[1753136356991,6.26188841,196.47,196.46,0.03]
[1753136357179,41.74188841,196.47,196.46,0.03]
[1753136358184,46.831724,196.47,196.46,0.03]
[1753136358491,63.65640797,196.47,196.46,0.03]
[1753136359597,28.13640797,196.47,196.46,0.03]
[1753136359895,63.65640797,196.47,196.46,0.03]
[1753136362489,66.30708624,196.47,196.46,0.03]
[1753136362874,16.78468397,196.46,196.45,0.03]
[1753136363097,58.58657238,196.46,196.45,0.03]
[1753136364296,63.67666705,196.46,196.45,0.03]
[1753136364789,58.58657238,196.46,196.45,0.03]
[1753136364990,35.54,196.46,196.45,0.03]
[1753136365192,41.12188841,196.46,196.45,0.03]
[1753136366676,35.54,196.46,196.45,0.69]
[1753136367505,35.54,196.46,196.45,0.03]
[1753136367875,41.12188841,196.46,196.45,0.03]
[1753136368081,41.80188841,196.46,196.45,0.03]
[1753136368907,63.67666705,196.46,196.45,0.03]
[1753136372397,16.78468397,196.44,196.43,0.03]
[1753136372703,62.99718528,196.44,196.43,0.03]
[1753136372920,63.67718528,196.44,196.43,0.03]
[1753136377704,63.67718528,196.44,196.42,0.03]
[1753136377705,42.78468397,196.43,196.42,0.03]
[1753136377897,23.04657238,196.43,196.42,0.03]
[1753136378214,27.94846079,196.4,196.39,0.03]
[1753136378400,63.48846079,196.4,196.39,0.03]
[1753136378714,64.17846079,196.4,196.39,0.03]
[1753136379500,69.27011048,196.4,196.39,0.03]
[1753136379722,22.36657238,196.39,196.38,0.2]
[1753136379886,57.94657238,196.39,196.38,0.2]
[1753136380431,58.63657238,196.39,196.38,0.2]
[1753136381706,63.72848133,196.39,196.38,0.2]
[1753136382289,42.78468397,196.36,196.35,0.03]
[1753136382486,105.28468397,196.35,196.34,0.2]
[1753136382689,110.86657238,196.35,196.34,0.2]
[1753136382888,111.55657238,196.35,196.34,0.2]
[1753136383607,21.87788963,196.34,196.33,0.2]
[1753136383815,67.82369727,196.34,196.33,0.2]
[1753136384189,63.74977804,196.34,196.33,0.2]
[1753136384405,26.0,196.31,196.3,0.2]
[1753136384607,72.76377682,196.31,196.3,0.2]
[1753136384792,73.45377682,196.31,196.3,0.2]
[1753136385195,90.23846079,196.31,196.3,0.2]
[1753136385507,95.33244479,196.31,196.3,0.2]
[1753136385895,89.75055638,196.31,196.3,0.2]
[1753136386293,95.33244479,196.31,196.3,0.2]
[1753136386711,16.78468397,196.3,196.26,0.2]
[1753136387011,28.63846079,196.3,196.26,0.2]
[1753136387517,60.61406007,196.3,196.27,0.69]
[1753136388225,71.98019198,196.3,196.26,0.2]
[1753136388523,60.81641516,196.3,196.26,0.2]
[1753136388816,65.70830357,196.3,196.26,0.89]
[1753136389004,25.01406007,196.3,196.29,0.72]
[1753136389207,60.79406007,196.3,196.29,0.72]
[1753136389506,65.88830357,196.3,196.29,0.03]
[1753136389712,72.16019198,196.3,196.29,0.03]
[1753136390712,60.30641516,196.3,196.29,0.03]
[1753136391017,65.88830357,196.3,196.29,0.03]
[1753136392008,148.80641516,196.3,196.29,0.03]
[1753136392226,154.38830357,196.3,196.29,0.03]
[1753136392593,149.29406007,196.3,196.29,0.03]
[1753136392795,154.38830357,196.3,196.29,0.72]
[1753136393000,154.38830357,196.3,196.29,0.03]
[1753136393997,2.64748769,196.3,196.29,0.03]
[1753136394201,35.76,196.3,196.29,0.72]
[1753136398511,35.74,196.3,196.29,0.72]
[1753136399230,35.74,196.3,196.29,5.81450303]
[1753136399415,35.74,196.3,196.29,7.37650303]
[1753136400012,35.74,196.3,196.29,2.282]
[1753136400629,35.74,196.3,196.29,7.37650303]
[1753136401129,35.8,196.3,196.29,2.282]
[1753136406027,35.8,196.3,196.29,0.72]
[1753136406337,35.8,196.3,196.29,5.81450303]
[1753136407216,35.8,196.3,196.29,0.03]
[1753136407518,35.8,196.3,196.29,0.72]
[1753136410729,35.8,196.3,196.29,5.81450303]
[1753136411255,35.8,196.3,196.29,11.39639144]
[1753136411445,35.8,196.3,196.29,5.81450303]
[1753136413831,0.06,196.3,196.29,11.39639144]
[1753136414032,35.78,196.3,196.29,11.39639144]
[1753136414258,35.78,196.3,196.29,12.91999144]
[1753136415932,0.06,196.3,196.29,38.91999144]
[1753136416159,0.06,196.3,196.29,13.42944174]
[1753136416926,0.06,196.34,196.31,26.0]
[1753136417131,35.8,196.34,196.33,10.67535349]
[1753136417352,35.8,196.34,196.33,11.39535349]
[1753136418356,0.06,196.34,196.33,11.39535349]
[1753136418667,0.06,196.34,196.33,11.90469999]
[1753136418831,36.64,196.47,196.36,26.0]
[1753136419032,36.64,196.47,196.37,27.22924275]
[1753136419033,37.35,196.47,196.37,27.22924275]
[1753136419257,42.01188841,196.46,196.4,5.58188841]
[1753136419631,42.01188841,196.46,196.4,6.30188841]
[1753136420736,42.01188841,196.46,196.41,5.81139045]
[1753136420944,42.01188841,196.46,196.41,5.09139045]
[1753136421160,42.01188841,196.46,196.42,0.72]
[1753136422463,35.72,196.46,196.43,0.72]
[1753136422652,35.72,196.46,196.42,5.58188841]
[1753136422853,35.72,196.46,196.44,0.72]
[1753136423446,35.72,196.46,196.43,5.58188841]
[1753136423631,35.72,196.46,196.43,10.67275059]
[1753136423831,36.64,196.47,196.45,5.58188841]
[1753136424057,0.06,196.49,196.46,6.30188841]
[1753136424358,35.68,196.48,196.46,6.30188841]
[1753136424545,35.68,196.48,196.47,0.72]
[1753136424952,35.68,196.48,196.47,6.30188841]
[1753136425491,35.68,196.48,196.47,11.391724]
[1753136425636,35.68,196.48,196.47,6.30188841]
[1753136426373,35.68,196.48,196.46,5.58188841]
[1753136426663,35.68,196.48,196.46,6.30188841]
[1753136426961,35.68,196.48,196.47,0.72]
[1753136427632,35.68,196.48,196.47,6.30188841]
[1753136428035,35.68,196.48,196.47,11.391724]
[1753136434859,35.68,196.48,196.47,6.30188841]
[1753136436785,35.68,196.48,196.47,11.391724]
[1753136438086,35.68,196.48,196.47,6.30188841]
[1753136439476,35.68,196.48,196.47,11.391724]
[1753136444783,35.74,196.48,196.47,11.391724]
[1753136445813,0.06,196.48,196.47,11.391724]
[1753136451313,0.06,196.48,196.47,28.17640797]
[1753136451523,0.06,196.52,196.48,1.604]
[1753136451819,0.06,196.52,196.51,22.36657238]
[1753136452189,0.06,196.52,196.51,23.02657238]
[1753136452711,0.06,196.52,196.51,6.24188841]
[1753136452894,41.18188841,196.52,196.49,19.3476199]
[1753136453097,0.06,196.52,196.51,5.58188841]
[1753136453298,0.06,196.52,196.51,11.33068796]
[1753136458424,0.06,196.52,196.51,28.11537193]
[1753136458616,0.06,196.56,196.52,22.36657238]
[1753136458812,0.06,196.56,196.52,23.53542644]
[1753136459904,0.06,196.56,196.52,28.62396704]
[1753136461114,0.06,196.56,196.52,11.83928307]
[1753136461426,5.64188841,196.56,196.52,5.59739466]
[1753136461607,6.31188841,196.56,196.52,5.59739466]
[1753136461808,6.31188841,196.56,196.47,5.58188841]
[1753136461809,8.34901541,196.53,196.47,5.58188841]
[1753136462024,6.25188841,196.52,196.47,5.08983559]
[1753136462339,5.58188841,196.51,196.47,5.08983559]
[1753136462631,6.25188841,196.51,196.47,31.74983559]
[1753136463001,6.25188841,196.51,196.47,31.08983559]
[1753136464315,0.67,196.5,196.48,5.08955356]
[1753136465433,2.097127,196.53,196.42,0.66]
[1753136465434,6.25188841,196.49,196.42,0.66]
[1753136465620,7.7668,196.52,196.34,16.5923]
[1753136465621,5.58188841,196.44,196.38,6.24188841]
[1753136465930,5.58188841,196.44,196.41,26.0]
[1753136466117,5.58188841,196.43,196.39,0.03]
[1753136466433,31.58188841,196.44,196.39,0.03]
[1753136466644,31.58188841,196.44,196.39,0.69]
[1753136466924,31.58188841,196.44,196.4,0.66]
[1753136467305,31.58188841,196.44,196.43,0.03]
[1753136467505,26.0,196.44,196.43,0.69]
[1753136467731,26.0,196.44,196.43,0.03]
[1753136471112,26.0,196.44,196.43,0.74]
[1753136471430,35.58,196.49,196.44,5.0906129]
[1753136471608,35.58,196.49,196.48,5.58188841]
[1753136471808,35.58,196.49,196.47,5.58188841]
[1753136472119,35.58,196.49,196.48,5.58188841]
[1753136472431,35.58,196.49,196.48,6.29188841]
[1753136473133,35.58,196.49,196.48,11.38146495]
[1753136477522,0.06,196.52,196.48,5.79957654]
[1753136477715,0.06,196.52,196.48,11.38146495]
[1753136481217,0.06,196.52,196.49,6.80082016]
[1753136481450,0.06,196.52,196.51,26.0]
[1753136481919,0.06,196.52,196.51,26.71]
[1753136482248,0.06,196.52,196.51,32.80076836]
[1753136483212,0.06,196.52,196.51,26.0]
[1753136483412,0.78,196.52,196.51,26.0]
[1753136483715,0.06,196.52,196.51,26.0]
[1753136487345,0.78,196.52,196.51,26.0]
[1753136488018,0.06,196.52,196.51,26.0]
[1753136489741,0.06,196.52,196.51,37.38068796]
[1753136490833,0.06,196.52,196.51,31.79879955]
[1753136491047,0.06,196.52,196.51,31.08879955]
[1753136492450,0.06,196.52,196.51,31.79879955]
[1753136496051,0.06,196.52,196.51,31.08879955]
[1753136497643,0.06,196.52,196.51,26.0]
[1753136498453,0.06,196.52,196.51,31.08879955]
[1753136499037,6.30188841,196.52,196.44,0.03]
[1753136499231,5.58188841,196.47,196.44,0.03]
[1753136499433,5.58188841,196.45,196.44,0.03]
[1753136499657,6.24188841,196.45,196.44,0.03]
[1753136501248,35.52,196.46,196.44,0.03]
[1753136501456,35.54,196.45,196.44,0.7]
[1753136501761,35.54,196.45,196.44,5.7906129]
[1753136502253,35.54,196.45,196.44,5.1206129]
[1753136503039,41.78188841,196.45,196.44,0.03]
[1753136503646,41.12188841,196.45,196.44,0.03]
[1753136504154,35.54,196.45,196.44,0.03]
[1753136505234,41.78188841,196.45,196.44,0.03]
[1753136508084,46.87224218,196.45,196.44,0.03]
[1753136512763,41.78188841,196.45,196.44,0.03]
[1753136513668,46.87224218,196.45,196.44,0.03]
[1753136516558,46.87224218,196.45,196.4,0.03]
[1753136516559,16.78468397,196.44,196.4,0.03]
[1753136516744,5.58188841,196.41,196.4,0.03]
[1753136517068,41.10188841,196.41,196.4,0.03]
[1753136517245,41.76188841,196.41,196.4,0.03]
[1753136518448,69.21985124,196.41,196.4,0.03]
[1753136519373,41.76188841,196.41,196.4,0.03]
[1753136519572,46.85327886,196.41,196.4,0.03]
[1753136520484,52.43516727,196.41,196.4,0.03]
[1753136521259,69.21985124,196.41,196.4,0.03]
[1753136522864,16.78468397,196.4,196.39,0.03]
[1753136523085,117.10846079,196.4,196.39,0.03]
[1753136523259,100.32377682,196.4,196.39,0.03]
[1753136523476,130.28188841,196.4,196.39,0.03]
[1753136523880,124.04,196.4,196.39,0.03]
[1753136524083,129.62188841,196.4,196.39,0.03]
[1753136525364,130.28188841,196.4,196.39,0.03]
[1753136525780,41.12188841,196.4,196.39,0.03]
[1753136528773,35.54,196.4,196.39,0.75]
[1753136530972,41.12188841,196.4,196.39,0.03]
[1753136531177,41.78188841,196.4,196.39,0.03]
[1753136531480,41.12188841,196.4,196.39,0.03]
[1753136531783,41.78188841,196.4,196.39,0.03]
[1753136532361,41.84188841,196.4,196.39,0.03]
[1753136533380,41.18188841,196.4,196.39,0.03]
[1753136533661,41.18188841,196.4,196.39,0.75]
[1753136534377,41.18188841,196.4,196.39,0.03]
[1753136537476,35.6,196.4,196.39,0.75]
[1753136538262,35.6,196.4,196.39,0.03]
[1753136538465,41.18188841,196.4,196.39,0.03]
[1753136538885,41.84188841,196.4,196.39,0.03]
[1753136539074,47.42377682,196.4,196.39,0.03]
[1753136539676,52.51542651,196.4,196.39,0.03]
[1753136539862,41.84188841,196.4,196.39,0.03]
[1753136544777,5.64188841,196.4,196.39,0.03]
[1753136544985,0.06,196.4,196.39,0.75]
[1753136545285,35.6,196.4,196.39,0.75]
[1753136546579,35.6,196.4,196.39,0.03]
[1753136547493,35.6,196.4,196.39,5.84190895]
[1753136548095,35.6,196.4,196.39,11.42379736]
[1753136548482,0.06,196.4,196.39,11.42379736]
[1753136557506,0.06,196.4,196.39,0.03]
[1753136557721,6.30188841,196.4,196.39,0.03]
[1753136560487,11.3935381,196.4,196.39,0.03]
[1753136560687,16.97542651,196.4,196.39,0.03]
[1753136561099,33.76011048,196.4,196.39,0.03]
[1753136561495,69.28011048,196.4,196.39,0.03]
[1753136563901,69.28011048,196.4,196.36,0.03]
[1753136563902,16.78468397,196.37,196.36,0.03]
[1753136564097,22.36657238,196.37,196.36,0.03]
[1753136564291,23.02657238,196.37,196.36,0.03]
[1753136565296,28.11899994,196.37,196.36,0.03]
[1753136565917,63.65899994,196.37,196.35,0.03]
[1753136566106,23.02657238,196.36,196.35,0.03]
[1753136566913,28.11925928,196.36,196.35,0.03]
[1753136574302,58.56657238,196.36,196.35,0.03]
[1753136574511,41.12188841,196.36,196.35,0.03]
[1753136575702,41.78188841,196.36,196.35,0.03]
[1753136575925,35.54,196.36,196.35,0.03]
[1753136576125,41.18188841,196.36,196.35,0.03]
[1753136579020,41.84188841,196.36,196.35,0.03]
[1753136582024,46.93457531,196.36,196.35,0.03]
[1753136582412,63.71925928,196.36,196.35,0.03]
[1753136584029,21.93737087,196.36,196.35,0.03]
[1753136584328,41.18188841,196.36,196.35,0.03]
[1753136585224,41.84188841,196.36,196.35,0.03]
[1753136585731,63.71925928,196.36,196.35,0.03]
[1753136587934,41.18188841,196.36,196.35,0.03]
[1753136593634,5.64188841,196.36,196.35,0.03]
[1753136593838,41.18188841,196.36,196.35,0.03]
[1753136595929,41.18188841,196.36,196.35,0.73]
[1753136596751,41.18188841,196.36,196.35,0.03]
[1753136597124,41.18188841,196.36,196.35,0.73]
[1753136598224,41.18188841,196.36,196.35,0.03]
[1753136600651,41.18188841,196.36,196.35,0.73]
[1753136601757,41.18188841,196.36,196.35,0.03]
[1753136602458,41.18188841,196.36,196.35,0.73]
[1753136602645,35.6,196.36,196.35,0.73]
[1753136602840,41.18188841,196.36,196.35,0.73]
[1753136603046,35.6,196.36,196.35,0.73]
[1753136603350,41.18188841,196.36,196.35,0.03]
[1753136604160,41.18188841,196.36,196.35,0.73]
[1753136604657,41.18188841,196.36,196.35,0.03]
[1753136605860,41.88188841,196.36,196.35,0.03]
[1753136607745,41.18188841,196.36,196.35,0.03]
[1753136610560,63.75925928,196.36,196.35,0.03]
[1753136613271,63.75925928,196.36,196.34,0.03]
[1753136613565,16.78468397,196.34,196.31,0.03]
[1753136613873,22.36657238,196.32,196.31,0.03]
[1753136614247,28.64846079,196.32,196.31,0.03]
[1753136614452,33.74218532,196.32,196.31,0.03]
[1753136615074,28.16029691,196.32,196.31,0.03]
[1753136616367,5.58188841,196.32,196.31,0.03]
[1753136616672,41.12188841,196.32,196.31,0.73]
[1753136618361,41.12188841,196.32,196.31,0.03]
[1753136619073,41.80188841,196.32,196.31,0.03]
[1753136619369,46.89561294,196.32,196.31,0.03]
[1753136623172,46.21561294,196.32,196.31,0.03]
[1753136623676,41.12188841,196.32,196.31,0.03]
[1753136624359,5.58188841,196.32,196.31,0.03]
[1753136624571,41.12188841,196.32,196.31,0.71]
[1753136627959,35.54,196.32,196.31,0.71]
[1753136628201,35.54,196.32,196.31,5.803984]
[1753136629282,41.80188841,196.32,196.31,0.03]
[1753136631366,46.89561294,196.32,196.31,0.03]
[1753136631557,63.68029691,196.32,196.31,0.03]
[1753136631764,16.78468397,196.31,196.3,0.03]
[1753136631982,28.62846079,196.31,196.3,0.03]
[1753136633193,33.72244479,196.31,196.3,0.03]
[1753136640602,33.04244479,196.31,196.3,0.03]
[1753136641978,33.72244479,196.31,196.3,0.03]
[1753136643302,33.04244479,196.31,196.3,0.03]
[1753136645093,33.72244479,196.31,196.3,0.03]
[1753136645603,2.65283006,196.33,196.3,0.71]
[1753136645804,35.52,196.32,196.31,1.5807]
[1753136646011,35.52,196.32,196.31,28.2607]
[1753136646183,41.10188841,196.32,196.31,2.2607]
[1753136646786,35.52,196.32,196.31,2.2607]
[1753136647004,41.10188841,196.32,196.31,2.2607]
[1753136647893,41.10188841,196.32,196.31,7.354684]
[1753136649715,41.10188841,196.32,196.31,2.2607]
[1753136650395,41.10188841,196.32,196.31,0.68]
[1753136651905,35.52,196.32,196.31,5.773984]
[1753136652113,41.10188841,196.32,196.31,5.773984]
[1753136653319,41.10188841,196.32,196.31,0.68]
[1753136654912,41.10188841,196.32,196.31,5.773984]
[1753136655081,35.52,196.32,196.31,5.773984]
[1753136655284,41.10188841,196.32,196.31,5.773984]
[1753136655485,41.10188841,196.32,196.31,0.68]
[1753136655787,41.10188841,196.32,196.31,5.773984]
[1753136659218,41.10188841,196.32,196.31,0.68]
[1753136660584,41.10188841,196.32,196.3,0.03]
[1753136660790,5.58188841,196.31,196.3,0.03]
[1753136661310,6.25188841,196.31,196.3,0.03]
[1753136662998,5.58188841,196.31,196.3,0.03]
[1753136663224,5.58188841,196.31,196.3,0.72]
[1753136664021,5.58188841,196.31,196.3,0.03]
[1753136666113,0.06,196.32,196.3,0.03]
[1753136666421,0.06,196.32,196.3,0.72]
[1753136666422,41.10188841,196.31,196.3,0.72]
[1753136669322,41.10188841,196.31,196.3,0.03]
[1753136671713,41.08188841,196.31,196.3,10.03]
[1753136673405,12.73108328,196.37,196.32,10.0]
[1753136673718,5.58188841,196.33,196.32,10.0]